bitfinex-derivatives/quotes_ETHF0:USTF0_20250330
["timestamp","ask_amount","ask_price","bid_price","bid_amount"]
[1743306092793,0.00815018,1837.3,1837.2,7.79071]
[1743306093102,9.0458,1837.7,1837.6,1.08868]
[1743306093296,1.08853,1837.9,1837.6,1.08865]
[1743306093602,1.08853,1837.9,1837.7,2.2138]
[1743306093903,4.29636,1837.8,1837.7,2.2138]
[1743306094204,3.2078,1837.8,1837.7,2.2138]
[1743306094908,3.2078,1837.8,1837.7,3.30242]
[1743306095597,3.2078,1837.8,1837.6,1.09680018]
[1743306095797,3.2078,1837.8,1837.7,1.4648]
[1743306096696,3.2078,1837.8,1837.7,2.55342]
[1743306097599,4.29636,1837.8,1837.6,1.09680018]
[1743306097798,3.2078,1837.8,1837.6,1.09680018]
[1743306098396,1.08862,1837.7,1837.6,0.00815018]
[1743306099399,1.08877,1837.5,1837.3,1.08884]
[1743306099807,0.7415,1837.4,1837.3,1.08884]
[1743306100006,1.83029,1837.4,1837.2,2.57318]
[1743306100313,3.9493,1837.4,1837.3,1.08885]
[1743306100903,0.7415,1837.4,1837.3,1.08885]
[1743306101105,3.9493,1837.4,1837.2,2.57317]
[1743306101406,5.03812,1837.4,1837.2,2.57317]
[1743306101806,3.9493,1837.4,1837.3,1.08885]
[1743306102007,0.7415,1837.4,1837.3,1.08885]
[1743306103104,0.7415,1837.4,1837.2,2.57319]
[1743306103507,0.7415,1837.4,1837.3,1.4802]
[1743306104013,0.7415,1837.4,1837.3,2.56905]
[1743306104214,1.80595,1837.5,1837.3,2.56905]
[1743306104411,1.80595,1837.5,1837.4,1.4802]
[1743306105619,1.08881,1837.4,1837.2,1.08888]
[1743306105816,1.08881,1837.4,1837.3,1.4019]
[1743306108016,1.80598,1837.5,1837.3,1.4019]
[1743306108218,0.6897,1837.4,1837.3,1.08885]
[1743306108419,1.4772,1837.4,1837.3,1.08885]
[1743306110829,1.4772,1837.4,1837.3,1.83695]
[1743306112326,4.685,1837.4,1837.2,2.49078]
[1743306112519,4.685,1837.4,1837.1,3.498]
[1743306112520,6.47782,1837.4,1837.1,5.27823]
[1743306112828,1.3836,1837.3,1837.2,1.08891]
[1743306113027,2.47246,1837.3,1837.1,3.16763]
[1743306113519,3.2078,1837.6,1837.3,2.72202]
[1743306113721,25.23773558,1837.9,1837.8,1.08856]
[1743306114630,25.23773558,1837.9,1837.7,1.78388]
[1743306115024,25.23773558,1837.9,1837.8,1.4573]
[1743306115224,25.23773558,1837.9,1837.8,2.54586]
[1743306115425,25.23773558,1837.9,1837.8,1.4573]
[1743306116031,3.9524,1837.9,1837.8,1.4573]
[1743306116330,5.3905,1837.9,1837.8,2.54586]
[1743306120633,5.3905,1837.9,1837.8,1.4573]
[1743306120836,5.3905,1837.9,1837.7,5.28888]
[1743306120837,6.47901,1837.9,1837.7,5.28888]
[1743306121033,2.1403,1837.8,1837.7,5.28888]
[1743306121326,2.1403,1837.8,1837.7,6.69758]
[1743306124631,3.22886,1837.8,1837.6,1.08865]
[1743306124829,1.4854,1837.7,1837.5,6.7778]
[1743306125028,1.4854,1837.7,1837.6,1.08868]
[1743306128139,2.57404,1837.7,1837.5,6.77781]
[1743306128529,2.57404,1837.7,1837.5,0.7488]
[1743306128530,1.3714,1837.6,1837.5,0.7488]
[1743306128731,1.3714,1837.6,1837.5,1.08874]
[1743306131443,1.3714,1837.6,1837.5,2.49104]
[1743306132241,2.0747,1837.6,1837.5,2.49104]
[1743306133036,0.7469,1837.8,1837.7,1.08862]
[1743306133242,3.9547,1837.8,1837.7,1.08862]
[1743306134146,0.742,1837.9,1837.8,1.08856]
[1743306135546,2.1715,1837.9,1837.8,2.49766]
[1743306137546,3.26,1837.9,1837.8,1.08856]
[1743306137947,2.1715,1837.9,1837.8,1.08856]
[1743306138542,3.21595018,1838.0,1837.9,1.0885]
[1743306138738,4.57875018,1838.0,1837.9,1.7988]
[1743306139642,21.28533558,1838.2,1838.1,1.08838]
[1743306139843,21.28533558,1838.2,1838.1,4.58638]
[1743306140143,2.1769,1838.4,1838.3,1.08826]
[1743306140337,5.3847,1838.4,1838.3,1.08826]
[1743306140749,5.3847,1838.4,1838.3,2.48196]
[1743306141135,2.1769,1838.4,1838.3,2.48196]
[1743306143249,1.471,1838.4,1838.3,2.48196]
[1743306143850,21.34438149,1838.5,1838.4,1.0882]
[1743306144050,21.34438149,1838.5,1838.4,5.9623]
[1743306146051,0.00815018,1838.5,1838.4,5.9623]
[1743306152359,0.00815018,1838.5,1838.4,2.4633]
[1743306152559,0.00815018,1838.5,1838.3,1.08824]
[1743306152854,0.00815018,1838.5,1838.3,1.08823]
[1743306152855,2.14215018,1838.5,1838.3,1.08823]
[1743306153052,1.3855,1838.4,1838.3,1.08823]
[1743306155955,1.3855,1838.4,1838.2,3.50415018]
[1743306156554,1.3855,1838.4,1838.3,1.08826]
[1743306156956,1.3855,1838.4,1838.2,1.09642018]
[1743306157654,1.3855,1838.4,1838.3,1.08826]
[1743306159765,2.4737,1838.4,1838.3,1.08826]
[1743306160157,1.3855,1838.4,1838.3,1.08826]
[1743306166362,2.4737,1838.4,1838.2,1.09643018]
[1743306166765,1.4042,1838.3,1838.2,1.09643018]
[1743306167567,2.49246,1838.3,1838.2,1.09643018]
[1743306167768,1.4042,1838.3,1838.2,1.09643018]
[1743306169267,2.49246,1838.3,1838.2,0.00815018]
[1743306169470,1.4042,1838.3,1838.2,1.09647018]
[1743306169870,1.4042,1838.3,1838.2,0.00815018]
[1743306170071,2.49246,1838.3,1838.2,0.00815018]
[1743306170275,1.4042,1838.3,1838.2,0.00815018]
[1743306171365,2.49246,1838.3,1838.2,0.00815018]
[1743306171566,1.4042,1838.3,1838.2,1.09647018]
[1743306173775,2.49246,1838.3,1838.2,0.00815018]
[1743306174168,5.70026,1838.3,1838.2,0.00815018]
[1743306174364,5.70026,1838.3,1838.2,1.09647018]
[1743306174777,4.612,1838.3,1838.2,1.09647018]
[1743306176572,1.4042,1838.3,1838.2,1.09647018]
[1743306176778,4.612,1838.3,1838.2,1.09647018]
[1743306178872,1.4042,1838.3,1838.2,1.09647018]
[1743306182379,1.4042,1838.3,1838.2,0.00815018]
[1743306182583,1.4042,1838.3,1838.2,1.09647018]
[1743306183791,1.4042,1838.3,1838.2,0.00815018]
[1743306184086,1.08847,1838.0,1837.8,1.08853]
[1743306184387,2.1123,1837.9,1837.8,1.08853]
[1743306184582,2.8008,1837.9,1837.8,1.08853]
[1743306184782,2.8008,1837.9,1837.8,2.54373]
[1743306188284,2.8008,1837.9,1837.8,2.54376]
[1743306188885,3.8893,1837.9,1837.8,2.54376]
[1743306189081,3.8893,1837.9,1837.8,1.4552]
[1743306190388,2.8008,1837.9,1837.8,2.54376]
[1743306191786,3.8893,1837.9,1837.8,1.4552]
[1743306192482,2.8008,1837.9,1837.8,2.54376]
[1743306192688,2.0497,1837.9,1837.8,2.54376]
[1743306193691,1.08842,1838.1,1837.8,1.4552]
[1743306193991,2.46194,1838.0,1837.8,2.54373]
[1743306194193,1.08844,1838.0,1837.9,1.4714]
[1743306194986,4.29624,1838.0,1837.9,1.4714]
[1743306196395,1.08854,1837.9,1837.7,1.8279]
[1743306196586,2.50544,1837.9,1837.7,3.2993]
[1743306197094,2.50544,1837.9,1837.8,1.361]
[1743306197894,2.50544,1837.9,1837.8,2.44956]
[1743306198307,1.4169,1837.9,1837.8,2.44956]
[1743306199711,2.5054,1837.9,1837.8,1.361]
[1743306199905,2.5054,1837.9,1837.7,1.82786]
[1743306200100,4.29636,1837.8,1837.7,0.7393]
[1743306200407,4.29636,1837.8,1837.6,0.7142]
[1743306200408,3.2078,1837.8,1837.5,4.9112]
[1743306200709,3.2078,1837.8,1837.5,3.2456]
[1743306200911,1.08862,1837.7,1837.5,3.2456]
[1743306201100,0.7129,1837.6,1837.5,3.2456]
[1743306201297,1.80158,1837.6,1837.5,3.2456]
[1743306201604,2.52898,1837.6,1837.5,3.2456]
[1743306201802,1.4403,1837.6,1837.5,3.2456]
[1743306203106,2.52898,1837.6,1837.5,2.1569]
[1743306205810,5.73678,1837.6,1837.5,0.7387]
[1743306206215,1.4403,1837.6,1837.5,1.82744]
[1743306206413,0.7129,1837.6,1837.5,3.30044]
[1743306206912,1.08864,1837.7,1837.5,3.30044]
[1743306207114,1.08864,1837.7,1837.6,1.473]
[1743306208510,2.54354,1837.7,1837.6,1.473]
[1743306210113,1.08868,1837.6,1837.5,0.7387]
[1743306210314,6.46518,1837.6,1837.5,0.7387]
[1743306210502,6.46518,1837.6,1837.5,2.1683]
[1743306210706,5.3765,1837.6,1837.5,2.1683]
[1743306211808,5.3765,1837.6,1837.5,3.25704]
[1743306213816,6.46518,1837.6,1837.5,2.1683]
[1743306214017,5.3765,1837.6,1837.5,2.1683]
[1743306214412,5.3765,1837.6,1837.5,3.25704]
[1743306215720,2.1687,1837.6,1837.5,3.25704]
[1743306217022,3.25738,1837.6,1837.5,3.25704]
[1743306217322,2.1687,1837.6,1837.5,3.25704]
[1743306223326,1.4484,1837.6,1837.5,3.25704]
[1743306223627,4.6633,1837.7,1837.6,1.08868]
[1743306223827,4.6633,1837.7,1837.6,2.55298]
[1743306225922,4.6633,1837.7,1837.6,6.04598]
[1743306230927,4.6633,1837.7,1837.6,1.08868]
[1743306231730,4.6633,1837.7,1837.6,2.50528]
[1743306232929,22.79173131,1837.7,1837.6,2.50528]
[1743306233825,21.33623131,1837.7,1837.6,5.71308]
[1743306234021,21.33623131,1837.7,1837.6,8.21308]
[1743306234534,26.01073131,1838.0,1837.9,1.0885]
[1743306235231,22.80293131,1838.0,1837.9,2.5183]
[1743306240737,26.01073131,1838.0,1837.9,2.5183]
[1743306241132,26.01073131,1838.0,1837.9,1.4298]
[1743306241637,26.01073131,1838.0,1837.9,2.5183]
[1743306242436,27.09922131,1838.0,1837.8,3.492]
[1743306242636,1.4999,1837.9,1837.8,4.58055]
[1743306244225,2.5884,1837.9,1837.8,3.492]
[1743306244638,2.5884,1837.9,1837.7,1.76929]
[1743306244831,2.9534,1837.8,1837.7,1.76929]
[1743306245227,2.9534,1837.8,1837.7,1.08859]
[1743306245636,6.1612,1837.8,1837.7,1.08859]
[1743306246231,6.1612,1837.8,1837.6,6.02003]
[1743306246431,1.4427,1837.7,1837.6,6.02003]
[1743306249339,1.4427,1837.7,1837.6,4.58063]
[1743306250434,1.4427,1837.7,1837.6,4.58068]
[1743306251831,1.4427,1837.7,1837.6,6.07398]
[1743306255839,1.4427,1837.7,1837.6,3.492]
[1743306256040,1.4427,1837.7,1837.6,4.58068]
[1743306256343,1.08874,1837.5,1837.3,1.08885]
[1743306256542,2.1275,1837.4,1837.3,1.08885]
[1743306256744,2.8688,1837.4,1837.3,1.08885]
[1743306257846,2.8688,1837.4,1837.3,2.47055]
[1743306259952,2.1154,1837.4,1837.3,2.47055]
[1743306260946,1.3741,1837.4,1837.3,2.47055]
[1743306270250,0.00815018,1837.5,1837.4,1.08879]
[1743306270449,1.45485018,1837.5,1837.4,3.19949]
[1743306289656,0.00815018,1837.5,1837.4,6.40729]
[1743306295969,0.00815018,1837.5,1837.4,6.95209]
[1743306296168,0.00815018,1837.5,1837.4,6.40729]
[1743306298169,0.00815018,1837.5,1837.4,6.95209]
[1743306298674,0.00815018,1837.5,1837.4,6.40729]
[1743306299281,0.00815018,1837.5,1837.4,3.19949]
[1743306299474,0.00815018,1837.5,1837.4,6.69149]
[1743306299672,0.00815018,1837.5,1837.4,1.08879]
[1743306299872,0.00815018,1837.5,1837.4,4.58079]
[1743306301574,1.40025018,1837.5,1837.4,4.58079]
[1743306301978,1.40025018,1837.5,1837.4,4.57979]
[1743306306481,0.00815018,1837.5,1837.4,4.57979]
[1743306306678,0.00815018,1837.5,1837.4,6.68669]
[1743306306986,21.33623131,1837.9,1837.8,1.08856]
[1743306307183,21.33623131,1837.9,1837.8,4.57956]
[1743306308278,21.33623131,1837.9,1837.8,6.03126]
[1743306308482,1.39565018,1838.0,1837.9,1.0885]
[1743306308680,1.39565018,1838.0,1837.9,2.4479]
[1743306309583,2.14465018,1838.0,1837.9,2.4479]
[1743306311582,2.14465018,1838.0,1837.9,1.0885]
[1743306311783,2.14465018,1838.0,1837.9,4.5795]
[1743306316083,2.14465018,1838.0,1837.9,5.1243]
[1743306316385,2.14465018,1838.0,1837.9,4.5795]
[1743306316580,2.14465018,1838.0,1837.9,5.1243]
[1743306316782,2.14465018,1838.0,1837.9,4.5795]
[1743306323983,1.39565018,1838.0,1837.9,6.0384]
[1743306327192,0.00815018,1838.0,1837.9,6.0384]
[1743306335889,0.00815018,1838.0,1837.9,1.0885]
[1743306336092,1.84623018,1838.0,1837.7,0.00815018]
[1743306336288,1.84623018,1838.0,1837.8,3.49]
[1743306336289,0.728,1837.9,1837.8,3.49]
[1743306336603,2.1144,1837.9,1837.8,4.57854]
[1743306340005,2.1144,1837.9,1837.8,1.08854]
[1743306340200,5.3222,1837.9,1837.8,1.08854]
[1743306343096,6.4107,1837.9,1837.7,4.58673018]
[1743306343297,1.3683,1837.8,1837.7,4.58673018]
[1743306346407,1.3683,1837.8,1837.7,4.58677018]
[1743306351494,2.45686,1837.8,1837.7,3.49815018]
[1743306351701,1.08875,1837.5,1837.3,3.49]
[1743306351906,3.2078,1837.6,1837.3,3.49]
[1743306352206,1.4593,1837.4,1837.3,3.49]
[1743306352603,1.4593,1837.4,1837.1,9.09350589]
[1743306352604,1.08887,1837.3,1837.1,10.18243589]
[1743306352799,2.51747,1837.3,1837.2,3.489]
[1743306353009,5.72527,1837.3,1837.2,3.489]
[1743306353209,1.08893,1837.2,1836.9,3.2078]
[1743306353508,1.82677,1837.1,1837.0,3.489]
[1743306353810,1.4915,1837.1,1837.0,3.489]
[1743306354205,6.1279,1837.1,1836.8,1.08915]
[1743306354402,6.1279,1837.1,1836.6,0.5448]
[1743306354598,3.2078,1836.9,1836.5,1.08929]
[1743306354803,2.51777,1836.8,1836.5,1.08933]
[1743306355097,3.2078,1836.9,1836.6,1.08924]
[1743306355098,2.1664,1836.7,1836.6,1.08924]
[1743306355707,2.1664,1836.7,1836.5,2.57869]
[1743306355909,1.4499,1836.6,1836.5,2.57873]
[1743306356701,1.4499,1836.6,1836.5,1.4894]
[1743306357514,1.4499,1836.6,1836.5,2.57873]
[1743306358403,3.21595018,1836.9,1836.5,2.57873]
[1743306358404,0.00815018,1836.9,1836.5,4.6972]
[1743306358604,0.00815018,1836.9,1836.8,1.08915]
[1743306358807,0.00815018,1836.9,1836.8,2.53505]
[1743306376212,0.00815018,1836.9,1836.8,3.07985]
[1743306376619,0.00815018,1836.9,1836.8,2.53505]
[1743306376824,0.00815018,1836.9,1836.8,3.07985]
[1743306377024,0.00815018,1836.9,1836.8,2.53505]
[1743306377226,0.00815018,1836.9,1836.8,6.28765]
[1743306378031,0.00815018,1836.9,1836.8,5.74285]
[1743306379419,0.00815018,1836.9,1836.8,2.53505]
[1743306379620,0.00815018,1836.9,1836.8,6.28765]
[1743306380428,0.00815018,1836.9,1836.8,5.74285]
[1743306380625,0.00815018,1836.9,1836.8,6.28765]
[1743306381027,0.00815018,1836.9,1836.8,5.74285]
[1743306383033,0.00815018,1836.9,1836.8,6.28765]
[1743306383234,0.00815018,1836.9,1836.8,5.74285]
[1743306383434,0.00815018,1836.9,1836.8,6.28765]
[1743306383637,0.00815018,1836.9,1836.8,5.74285]
[1743306383935,0.00815018,1836.9,1836.8,6.28765]
[1743306384131,1.41515018,1836.9,1836.8,6.28765]
[1743306384337,1.41515018,1836.9,1836.8,5.74285]
[1743306384836,1.41515018,1836.9,1836.8,6.28765]
[1743306385236,1.41515018,1836.9,1836.8,5.74285]
[1743306385936,1.41515018,1836.9,1836.8,6.28765]
[1743306386332,1.41515018,1836.9,1836.8,5.74285]
[1743306387140,1.41515018,1836.9,1836.8,6.28765]
[1743306387336,1.41515018,1836.9,1836.8,5.74285]
[1743306387737,1.41515018,1836.9,1836.8,6.28765]
[1743306388041,1.41515018,1836.9,1836.8,5.74285]
[1743306388236,1.41515018,1836.9,1836.8,4.29695]
[1743306388438,2.11825018,1836.9,1836.8,4.29695]
[1743306398940,2.11825018,1836.9,1836.8,1.08915]
[1743306399247,2.11825018,1836.9,1836.8,3.49]
[1743306399653,3.20734018,1836.9,1836.8,3.49]
[1743306399946,3.20734018,1836.9,1836.7,1.08917]
[1743306399947,2.11825018,1836.9,1836.7,4.57917]
[1743306400148,1.404,1836.8,1836.7,4.57917]
[1743306403852,1.404,1836.8,1836.7,1.08917]
[1743306408150,1.404,1836.8,1836.7,2.50167]
[1743306410160,0.00815018,1836.9,1836.8,1.08915]
[1743306410363,0.00815018,1836.9,1836.8,3.20445]
[1743306410560,1.46395018,1836.9,1836.8,3.20445]
[1743306412158,0.00815018,1836.9,1836.8,3.20445]
[1743306412661,0.00815018,1836.9,1836.8,10.26226157]
[1743306412856,21.33623131,1837.0,1836.9,1.08909]
[1743306413061,21.33623131,1837.0,1836.9,9.17349]
[1743306413659,21.33623131,1837.0,1836.9,11.67349]
[1743306413865,21.33623131,1837.4,1837.3,1.08885]
[1743306414064,21.33623131,1837.4,1837.3,4.57885]
[1743306414267,22.74863131,1837.4,1837.3,4.57885]
[1743306414469,22.74863131,1837.4,1837.3,5.96545]
[1743306416166,22.74863131,1837.4,1837.3,4.57885]
[1743306422876,23.47333131,1837.4,1837.3,4.57885]
[1743306424479,30.26995131,1837.4,1837.0,3.489]
[1743306424680,1.4133,1837.3,1837.1,1.08895]
[1743306425183,0.6923,1837.2,1837.1,1.08895]
[1743306425977,0.6923,1837.2,1837.1,3.26715]
[1743306426477,1.4133,1837.3,1837.1,3.26715]
[1743306426782,1.4133,1837.3,1837.2,2.51571]
[1743306427476,1.4133,1837.3,1837.2,5.72351]
[1743306428573,1.4133,1837.3,1837.2,2.51571]
[1743306430981,21.33623131,1837.4,1837.3,1.08885]
[1743306431180,21.33623131,1837.4,1837.3,6.07535]
[1743306432886,22.01933131,1837.4,1837.3,6.07535]
[1743306433383,23.44193131,1837.4,1837.3,6.07535]
[1743306439783,23.44193131,1837.4,1837.3,1.08885]
[1743306439984,23.44193131,1837.4,1837.3,4.57685]
[1743306441597,2.1057,1837.4,1837.3,4.57685]
[1743306441794,1.4226,1837.4,1837.3,4.57685]
[1743306442495,1.4226,1837.4,1837.3,6.07275]
[1743306442895,0.00815018,1837.5,1837.4,1.08879]
[1743306443096,0.00815018,1837.5,1837.4,3.28249]
[1743306443895,1.43945018,1837.5,1837.4,3.28249]
[1743306445692,0.00815018,1837.5,1837.4,6.49029]
[1743306446092,21.33623131,1837.8,1837.7,1.08862]
[1743306446288,21.33623131,1837.8,1837.7,4.57662]
[1743306446993,21.33623131,1837.8,1837.7,5.32192]
[1743306447193,21.33623131,1837.8,1837.7,6.73572]
[1743306447401,1.43945018,1837.9,1837.8,1.08856]
[1743306447696,2.15685018,1837.9,1837.8,1.08856]
[1743306450498,2.15685018,1837.9,1837.8,2.54226]
[1743306450699,2.15685018,1837.9,1837.8,3.28546]
[1743306459495,1.43945018,1837.9,1837.8,3.28546]
[1743306459702,1.43945018,1837.9,1837.8,7.18586]
[1743306461712,1.43945018,1837.9,1837.8,6.49326]
[1743306461901,1.43945018,1837.9,1837.8,1.08856]
[1743306462106,1.43945018,1837.9,1837.6,3.2078]
[1743306462301,2.52709,1837.8,1837.6,3.2078]
[1743306462509,1.413,1837.7,1837.6,3.2078]
[1743306462712,1.413,1837.7,1837.6,4.29648]
[1743306464204,1.413,1837.7,1837.6,5.75188]
[1743306464702,0.7296,1837.8,1837.7,1.08862]
[1743306464906,1.44785018,1837.9,1837.8,1.08856]
[1743306465204,1.44785018,1837.9,1837.8,4.57556]
[1743306465510,1.44785018,1837.9,1837.8,5.32336]
[1743306468302,1.44785018,1837.9,1837.8,4.57556]
[1743306469904,1.44785018,1837.9,1837.8,1.08856]
[1743306470110,1.44785018,1837.9,1837.7,3.487]
[1743306470312,0.685,1837.8,1837.7,4.57562]
[1743306470603,3.8928,1837.8,1837.5,1.08871]
[1743306470806,3.2078,1837.6,1837.3,1.08883]
[1743306470998,3.2078,1837.4,1837.3,1.08883]
[1743306471511,4.5911,1837.4,1837.3,1.08883]
[1743306474002,0.7421,1837.7,1837.2,3.487]
[1743306474205,0.7421,1837.7,1837.6,1.08868]
[1743306475414,2.2342,1837.7,1837.6,1.08868]
[1743306476500,2.2342,1837.7,1837.6,2.54398]
[1743306477307,3.32282,1837.7,1837.6,2.54398]
[1743306477504,2.2342,1837.7,1837.6,2.54398]
[1743306478309,2.2342,1837.7,1837.6,1.08868]
[1743306480015,2.2342,1837.7,1837.5,4.8879]
[1743306480016,3.32287,1837.7,1837.5,4.57572]
[1743306480207,4.59,1837.6,1837.5,1.08872]
[1743306481111,5.67868,1837.6,1837.4,6.07195]
[1743306481310,1.3822,1837.5,1837.4,6.07195]
[1743306481511,2.0854,1837.5,1837.4,6.07195]
[1743306484512,3.17416,1837.5,1837.3,5.32022]
[1743306484711,1.3657,1837.4,1837.3,6.73952]
[1743306485914,1.3657,1837.5,1837.4,1.08875]
[1743306486212,1.3657,1837.5,1837.4,2.46185]
[1743306486607,1.4619,1837.7,1837.4,1.3731]
[1743306486807,1.4349,1837.6,1837.5,2.46184]
[1743306487009,1.4349,1837.6,1837.5,1.08874]
[1743306489618,24.54403131,1837.8,1837.7,1.08862]
[1743306489619,21.33623131,1837.8,1837.7,1.08862]
[1743306489823,21.33623131,1837.8,1837.7,4.29642]
[1743306490219,21.33623131,1837.8,1837.7,1.08862]
[1743306492723,1.46605018,1837.9,1837.8,1.08856]
[1743306493620,0.00815018,1837.9,1837.8,1.08856]
[1743306495018,1.47485018,1837.9,1837.8,1.08856]
[1743306496129,1.47485018,1837.9,1837.6,4.2297]
[1743306496130,1.47485018,1837.9,1837.5,3.7526]
[1743306496330,1.47485018,1837.9,1837.8,1.08856]
[1743306498339,1.47485018,1837.9,1837.7,1.08862]
[1743306498541,1.47485018,1837.9,1837.7,4.57562]
[1743306498744,1.47485018,1837.9,1837.8,1.08856]
[1743306500041,1.47485018,1837.9,1837.8,2.51386]
[1743306501347,1.47485018,1837.9,1837.8,3.26716]
[1743306502149,0.00815018,1837.9,1837.8,3.26716]
[1743306514360,1.47775018,1837.9,1837.8,3.26716]
[1743306515358,0.00815018,1837.9,1837.8,3.26716]
[1743306516361,0.00815018,1837.9,1837.8,3.81196]
[1743306517063,1.49875018,1837.9,1837.8,3.81196]
[1743306525575,2.21755018,1837.9,1837.8,4.57456]
[1743306529873,2.21755018,1837.9,1837.8,6.05096]
[1743306530272,1.49875018,1837.9,1837.8,6.05096]
[1743306530472,0.00815018,1837.9,1837.8,6.05096]
[1743306530870,0.00815018,1837.9,1837.8,6.48819638]
[1743306531474,0.00815018,1837.9,1837.8,8.98819638]
[1743306531774,0.00815018,1837.9,1837.8,15.96972577]
[1743306532176,1.8e-07,1837.9,1837.8,15.96972577]
[1743306532384,24.30803131,1838.5,1838.4,1.0882]
[1743306532679,24.30803131,1838.5,1838.4,4.5742]
[1743306534473,2.9718,1838.5,1838.4,4.5742]
[1743306534672,2.9718,1838.5,1838.4,5.9458]
[1743306534874,2.2237,1838.5,1838.4,5.9458]
[1743306535174,2.2237,1838.5,1838.4,9.1536]
[1743306535683,2.2237,1838.5,1838.4,9.8733]
[1743306535877,2.2237,1838.5,1838.4,6.6655]
[1743306536083,2.2237,1838.5,1838.4,7.2095]
[1743306539287,2.2237,1838.5,1838.4,10.4173]
[1743306540683,0.00815018,1838.6,1838.5,1.08814]
[1743306540989,0.00815018,1838.6,1838.5,3.23934]
[1743306545693,2.50815018,1838.6,1838.3,0.00815018]
[1743306545885,2.1875,1838.5,1838.3,1.09639018]
[1743306546086,1.4862,1838.4,1838.3,1.09641018]
[1743306550390,2.5744,1838.4,1838.3,0.00815018]
[1743306551097,5.0744,1838.4,1838.3,0.00815018]
[1743306551397,1.4862,1838.4,1838.3,1.09641018]
[1743306552688,1.4862,1838.4,1838.3,0.00815018]
[1743306553283,2.5744,1838.4,1838.3,0.00815018]
[1743306553489,5.0744,1838.4,1838.3,0.00815018]
[1743306554695,2.5744,1838.4,1838.3,0.00815018]
[1743306556598,3.9862,1838.4,1838.0,1.08842]
[1743306556798,3.2078,1838.2,1838.0,1.08842]
[1743306556994,2.1734,1838.1,1837.9,5.11746]
[1743306557200,1.4902,1838.0,1837.9,1.08846]
[1743306558101,1.4902,1838.0,1837.8,4.58169018]
[1743306558399,1.0885,1837.9,1837.8,0.00815018]
[1743306558993,2.5787,1837.9,1837.8,0.00815018]
[1743306559795,3.3057,1837.9,1837.8,0.00815018]
[1743306562704,6.5135,1837.9,1837.8,0.00815018]
[1743306563800,5.425,1837.9,1837.8,1.09671018]
[1743306563996,2.2172,1837.9,1837.8,1.09671018]
[1743306564200,2.2172,1837.9,1837.8,4.58171018]
[1743306564398,1.4902,1837.9,1837.8,7.78951018]
[1743306564598,3.891,1838.1,1838.0,1.08844]
[1743306565106,4.5818,1838.1,1838.0,1.08844]
[1743306566005,4.5818,1838.1,1838.0,2.53624]
[1743306570603,1.374,1838.1,1838.0,2.53624]
[1743306570803,4.5818,1838.1,1838.0,1.08844]
[1743306571105,4.5818,1838.1,1837.9,6.72997]
[1743306571106,7.17099,1838.1,1837.9,6.72997]
[1743306571400,1.5008,1838.0,1837.9,4.57447]
[1743306573307,1.5008,1838.0,1837.9,1.0885]
[1743306576208,4.7086,1838.0,1837.9,1.0885]
[1743306577713,1.0885,1837.9,1837.8,1.44915018]
[1743306577908,2.5036,1837.9,1837.8,1.44915018]
[1743306580316,1.0885,1837.9,1837.8,0.00815018]
[1743306586425,3.2078,1838.0,1837.9,1.0885]
[1743306587025,4.29616,1838.2,1838.0,1.08841]
[1743306587423,4.29614,1838.2,1838.0,1.08841]
[1743306590530,4.29614,1838.2,1837.8,3.49415018]
[1743306591430,4.29614,1838.2,1838.0,1.0884]
[1743306593726,4.29614,1838.2,1837.9,1.08845]
[1743306593727,1.08838,1838.1,1837.9,1.08845]
[1743306593924,4.29628,1838.0,1837.8,4.58267018]
[1743306594126,1.0885,1837.9,1837.8,4.58267018]
[1743306594327,3.2078,1838.0,1837.8,4.58267018]
[1743306594931,4.29628,1838.0,1837.8,4.58267018]
[1743306595135,4.29628,1838.0,1837.9,1.0885]
[1743306596027,4.29628,1838.0,1837.8,3.49415018]
[1743306596231,0.7499,1837.9,1837.8,4.58271018]
[1743306596431,2.8455,1837.9,1837.8,4.58271018]
[1743306601141,2.1578,1837.9,1837.8,4.58271018]
[1743306601433,3.2078,1838.0,1837.9,1.0885]
[1743306601733,5.3805,1838.2,1837.9,2.1665]
[1743306601926,1.4604,1838.1,1838.0,1.08844]
[1743306602130,3.2078,1838.2,1838.1,1.08838]
[1743306602333,4.6682,1838.2,1838.1,1.80068]
[1743306602730,26.00443131,1838.2,1838.1,1.80068]
[1743306603330,22.79663131,1838.2,1838.1,1.80068]
[1743306603927,23.88495131,1838.2,1838.1,0.7123]
[1743306604130,23.88495131,1838.2,1838.1,1.80068]
[1743306604336,23.88495131,1838.2,1838.1,3.30738]
[1743306604835,22.79663131,1838.2,1838.1,3.30738]
[1743306607738,26.00443131,1838.2,1838.1,3.30738]
[1743306608739,27.09275131,1838.2,1838.1,2.219]
[1743306609138,27.09275131,1838.2,1838.1,3.30738]
[1743306609537,26.72673131,1838.2,1837.9,1.80828]
[1743306609740,3.2078,1838.0,1837.8,0.00815018]
[1743306609941,2.1218,1837.9,1837.8,1.09671018]
[1743306610242,2.1218,1837.9,1837.8,2.52331018]
[1743306611436,1.394,1837.9,1837.8,2.52331018]
[1743306612345,2.4825,1837.9,1837.8,0.00815018]
[1743306612645,3.1767,1837.9,1837.8,0.00815018]
[1743306613439,2.0882,1837.9,1837.8,1.09671018]
[1743306613835,3.1767,1837.9,1837.8,0.00815018]
[1743306614247,3.1767,1837.9,1837.8,1.09671018]
[1743306614544,3.1767,1837.9,1837.8,0.00815018]
[1743306615142,3.1767,1837.9,1837.8,1.09671018]
[1743306615340,2.0882,1837.9,1837.8,1.09671018]
[1743306615539,1.394,1837.9,1837.8,1.09671018]
[1743306617140,1.394,1837.9,1837.8,2.53021018]
[1743306617749,2.4825,1837.9,1837.8,1.44165018]
[1743306618139,3.1716,1837.9,1837.8,1.44165018]